[Event "*** Titled Tuesday Blitz"]
[Site "Chess.com"]
[Date "2020.11.24"]
[Round "1"]
[White "manipun1"]
[Black "pastouche06"]
[Result "0-1"]
[WhiteElo "2244"]
[BlackElo "2545"]
[TimeControl "180+1"]
[EndTime "10:22:58 PST"]
[Termination "pastouche06 won by checkmate"]

1. e4 {[%clk 0:02:59.6]} 1... c6 {[%clk 0:02:59.6]} 2. d4 {[%clk 0:02:58.1]}
2... d5 {[%clk 0:03:00.2]} 3. Nc3 {[%clk 0:02:58]} 3... dxe4 {[%clk 0:03:00.5]}
4. Nxe4 {[%clk 0:02:58.9]} 4... Nf6 {[%clk 0:03:01.1]} 5. Ng3 {[%clk 0:02:58.5]}
5... h5 {[%clk 0:03:00.4]} 6. h4 {[%clk 0:02:55.6]} 6... c5 {[%clk 0:03:00]} 7.
Nf3 {[%clk 0:02:54.7]} 7... Bg4 {[%clk 0:02:49.7]} 8. Bb5+ {[%clk 0:02:49.1]}
8... Bd7 {[%clk 0:02:42.8]} 9. Be2 {[%clk 0:02:44.8]} 9... cxd4 {[%clk
0:02:36.9]} 10. Nxd4 {[%clk 0:02:42.7]} 10... Nc6 {[%clk 0:02:34.6]} 11. Bg5
{[%clk 0:02:40.4]} 11... Qb6 {[%clk 0:02:28]} 12. Nb3 {[%clk 0:02:22.8]} 12...
Rd8 {[%clk 0:01:59.1]} 13. O-O {[%clk 0:02:07.6]} 13... Ng4 {[%clk 0:01:51.2]}
14. Qe1 {[%clk 0:01:55.7]} 14... f6 {[%clk 0:01:40.7]} 15. Bxg4 {[%clk
0:01:46.8]} 15... hxg4 {[%clk 0:01:35.5]} 16. Be3 {[%clk 0:01:45.5]} 16... Qc7
{[%clk 0:01:27.7]} 17. h5 {[%clk 0:01:44.7]} 17... e6 {[%clk 0:01:19.9]} 18. Bc5
{[%clk 0:01:40]} 18... Ne5 {[%clk 0:01:05.6]} 19. Bxf8 {[%clk 0:01:30.8]} 19...
Kxf8 {[%clk 0:01:06.5]} 20. c3 {[%clk 0:01:27.5]} 20... Kf7 {[%clk 0:00:51.4]}
21. Nd4 {[%clk 0:01:25.6]} 21... g6 {[%clk 0:00:50.6]} 22. hxg6+ {[%clk
0:01:16.4]} 22... Nxg6 {[%clk 0:00:51.5]} 23. Qe3 {[%clk 0:01:11]} 23... Ne5
{[%clk 0:00:38.1]} 24. Rfe1 {[%clk 0:01:05.8]} 24... Rh7 {[%clk 0:00:34.3]} 25.
Rad1 {[%clk 0:01:01.3]} 25... Rdh8 {[%clk 0:00:33.6]} 26. Nde2 {[%clk 0:00:46]}
26... Bc6 {[%clk 0:00:29.2]} 27. Nd4 {[%clk 0:00:44.2]} 27... Bd5 {[%clk
0:00:21.8]} 28. b3 {[%clk 0:00:42.3]} 28... Ng6 {[%clk 0:00:08.5]} 29. c4 {[%clk
0:00:40.3]} 29... Rh1+ {[%clk 0:00:05.9]} 30. Nxh1 {[%clk 0:00:37.9]} 30... Qh2+
{[%clk 0:00:05.5]} 31. Kf1 {[%clk 0:00:37.7]} 31... Nf4 {[%clk 0:00:06.1]} 32.
Qxf4 {[%clk 0:00:23.7]} 32... Qxf4 {[%clk 0:00:07]} 33. Ng3 {[%clk 0:00:23.5]}
33... Bc6 {[%clk 0:00:04.5]} 34. Nxe6 {[%clk 0:00:22.7]} 34... Qh6 {[%clk
0:00:04.2]} 35. Nd4 {[%clk 0:00:17.7]} 35... Re8 {[%clk 0:00:03.5]} 36. Kg1
{[%clk 0:00:15.5]} 36... Rxe1+ {[%clk 0:00:03]} 37. Rxe1 {[%clk 0:00:14.7]}
37... Qd2 {[%clk 0:00:03.5]} 38. Re2 {[%clk 0:00:08.5]} 38... Qd1+ {[%clk
0:00:03.7]} 39. Kh2 {[%clk 0:00:07.7]} 39... Qxd4 {[%clk 0:00:04.6]} 40. Re3
{[%clk 0:00:06.9]} 40... Qf4 {[%clk 0:00:04.8]} 41. Kg1 {[%clk 0:00:06]} 41...
f5 {[%clk 0:00:04.2]} 42. Nf1 {[%clk 0:00:06.9]} 42... Qg5 {[%clk 0:00:04.1]}
43. Re5 {[%clk 0:00:03.7]} 43... Kf6 {[%clk 0:00:03.9]} 44. Rc5 {[%clk
0:00:03.5]} 44... Qc1 {[%clk 0:00:03.8]} 45. g3 {[%clk 0:00:02.4]} 45... Qc2
{[%clk 0:00:03.7]} 46. b4 {[%clk 0:00:01.4]} 46... Qe4 {[%clk 0:00:03.6]} 47. b5
{[%clk 0:00:02.3]} 47... Qh1# {[%clk 0:00:03.4]} 0-1

[Event "*** Titled Tuesday Blitz"]
[Site "Chess.com"]
[Date "2020.11.24"]
[Round "1"]
[White "zocpoc71"]
[Black "esteban062000"]
[Result "1-0"]
[WhiteElo "2522"]
[BlackElo "2168"]
[TimeControl "180+1"]
[EndTime "10:22:58 PST"]
[Termination "zocpoc71 won by checkmate"]

1. e4 {[%clk 0:02:57.4]} 1... c5 {[%clk 0:02:59.1]} 2. Nf3 {[%clk 0:02:56.8]}
2... g6 {[%clk 0:02:58.9]} 3. Nc3 {[%clk 0:02:53.5]} 3... Nc6 {[%clk 0:02:49.5]}
4. Bb5 {[%clk 0:02:52.6]} 4... Bg7 {[%clk 0:02:49.1]} 5. Bxc6 {[%clk 0:02:51.4]}
5... bxc6 {[%clk 0:02:48.6]} 6. d3 {[%clk 0:02:50.9]} 6... d6 {[%clk 0:02:47.8]}
7. h3 {[%clk 0:02:48.3]} 7... Nf6 {[%clk 0:02:44]} 8. O-O {[%clk 0:02:48.4]}
8... O-O {[%clk 0:02:43.9]} 9. Bg5 {[%clk 0:02:46.5]} 9... Rb8 {[%clk 0:02:43]}
10. b3 {[%clk 0:02:33]} 10... Qa5 {[%clk 0:02:35.9]} 11. Qd2 {[%clk 0:02:09.9]}
11... Re8 {[%clk 0:02:31]} 12. Bxf6 {[%clk 0:01:24.9]} 12... Bxf6 {[%clk
0:02:15.4]} 13. Nd5 {[%clk 0:01:23.6]} 13... Qxd2 {[%clk 0:02:08.6]} 14. Nxf6+
{[%clk 0:01:23.3]} 14... exf6 {[%clk 0:02:09.5]} 15. Nxd2 {[%clk 0:01:22.8]}
15... d5 {[%clk 0:02:09]} 16. Rfe1 {[%clk 0:01:21]} 16... Ba6 {[%clk 0:01:58.1]}
17. f3 {[%clk 0:01:18.3]} 17... Kf8 {[%clk 0:01:45.5]} 18. Kf2 {[%clk
0:01:16.8]} 18... Re7 {[%clk 0:01:45.5]} 19. Re3 {[%clk 0:01:11.7]} 19... Rbe8
{[%clk 0:01:42.8]} 20. Rae1 {[%clk 0:01:09.6]} 20... d4 {[%clk 0:01:25.1]} 21.
R3e2 {[%clk 0:01:08.9]} 21... Kg7 {[%clk 0:01:21.8]} 22. f4 {[%clk 0:01:07.4]}
22... h6 {[%clk 0:01:14.9]} 23. g4 {[%clk 0:01:07.1]} 23... g5 {[%clk
0:01:13.4]} 24. Kg3 {[%clk 0:01:01.9]} 24... Kg6 {[%clk 0:01:09.8]} 25. Rf2
{[%clk 0:00:56.5]} 25... Kg7 {[%clk 0:01:03.4]} 26. Ref1 {[%clk 0:00:50.4]}
26... Re6 {[%clk 0:00:59.3]} 27. fxg5 {[%clk 0:00:48.8]} 27... hxg5 {[%clk
0:00:59.1]} 28. h4 {[%clk 0:00:44.3]} 28... gxh4+ {[%clk 0:00:58.9]} 29. Kxh4
{[%clk 0:00:43.4]} 29... Rh8+ {[%clk 0:00:59.4]} 30. Kg3 {[%clk 0:00:43.3]}
30... Rh6 {[%clk 0:00:55.8]} 31. Nf3 {[%clk 0:00:42.4]} 31... Bc8 {[%clk
0:00:52.8]} 32. Nh4 {[%clk 0:00:42.7]} 32... Re5 {[%clk 0:00:51.3]} 33. Nf5+
{[%clk 0:00:42]} 33... Bxf5 {[%clk 0:00:50.6]} 34. Rxf5 {[%clk 0:00:42.9]} 34...
a6 {[%clk 0:00:28.1]} 35. a4 {[%clk 0:00:39.4]} 35... a5 {[%clk 0:00:27.9]} 36.
R1f2 {[%clk 0:00:38.9]} 36... Rg6 {[%clk 0:00:27.5]} 37. Rh2 {[%clk 0:00:31.9]}
37... Rh6 {[%clk 0:00:27.8]} 38. Rxh6 {[%clk 0:00:31.2]} 38... Kxh6 {[%clk
0:00:27.9]} 39. Rxf6+ {[%clk 0:00:31.2]} 39... Kg7 {[%clk 0:00:28.2]} 40. Rxc6
{[%clk 0:00:30.8]} 40... f6 {[%clk 0:00:26.9]} 41. Kf4 {[%clk 0:00:30]} 41...
Rg5 {[%clk 0:00:25.4]} 42. Ra6 {[%clk 0:00:29.5]} 42... c4 {[%clk 0:00:22.7]}
43. bxc4 {[%clk 0:00:27.7]} 43... Rc5 {[%clk 0:00:22.6]} 44. Rd6 {[%clk
0:00:25.4]} 44... Rc7 {[%clk 0:00:21.8]} 45. Rxd4 {[%clk 0:00:24.7]} 45... Kg6
{[%clk 0:00:22.7]} 46. Rd5 {[%clk 0:00:25]} 46... Rb7 {[%clk 0:00:22.4]} 47. Rb5
{[%clk 0:00:24.1]} 47... Ra7 {[%clk 0:00:21.5]} 48. c5 {[%clk 0:00:23.2]} 48...
Kg7 {[%clk 0:00:22]} 49. d4 {[%clk 0:00:21.4]} 49... Kg6 {[%clk 0:00:21.4]} 50.
d5 {[%clk 0:00:21.6]} 50... Rc7 {[%clk 0:00:21.6]} 51. c6 {[%clk 0:00:21.5]}
51... Rc8 {[%clk 0:00:21.8]} 52. Rxa5 {[%clk 0:00:20.4]} 52... Rc7 {[%clk
0:00:21.5]} 53. Rb5 {[%clk 0:00:20.9]} 53... Re7 {[%clk 0:00:21.5]} 54. d6
{[%clk 0:00:18.9]} 54... Re8 {[%clk 0:00:21.3]} 55. c7 {[%clk 0:00:19.1]} 55...
Rc8 {[%clk 0:00:21.6]} 56. Rc5 {[%clk 0:00:18.7]} 56... Kf7 {[%clk 0:00:20.5]}
57. d7 {[%clk 0:00:18.7]} 57... Ra8 {[%clk 0:00:20.8]} 58. c8=Q {[%clk
0:00:18.2]} 58... Rxc8 {[%clk 0:00:21.2]} 59. dxc8=Q {[%clk 0:00:18]} 59... Kg6
{[%clk 0:00:22.1]} 60. Qg8+ {[%clk 0:00:17.8]} 60... Kh6 {[%clk 0:00:22]} 61.
g5+ {[%clk 0:00:17.5]} 61... fxg5+ {[%clk 0:00:22]} 62. Qxg5+ {[%clk 0:00:17.3]}
62... Kh7 {[%clk 0:00:22.9]} 63. Rc7+ {[%clk 0:00:17]} 63... Kh8 {[%clk
0:00:23.3]} 64. Qg7# {[%clk 0:00:16.9]} 1-0

[Event "*** Titled Tuesday Blitz"]
[Site "Chess.com"]
[Date "2020.11.24"]
[Round "1"]
[White "WildTricks"]
[Black "champ2005"]
[Result "0-1"]
[WhiteElo "2463"]
[BlackElo "3026"]
[TimeControl "180+1"]
[EndTime "10:23:00 PST"]
[Termination "champ2005 won by resignation"]

1. f4 {[%clk 0:03:00.3]} 1... d5 {[%clk 0:02:55.9]} 2. Nf3 {[%clk 0:03:00.1]}
2... Nf6 {[%clk 0:02:56.2]} 3. g3 {[%clk 0:03:00.3]} 3... g6 {[%clk 0:02:56.5]}
4. Bg2 {[%clk 0:03:00.5]} 4... Bg7 {[%clk 0:02:56.9]} 5. O-O {[%clk 0:03:01.1]}
5... O-O {[%clk 0:02:57.2]} 6. d3 {[%clk 0:03:01.4]} 6... c5 {[%clk 0:02:52.5]}
7. Qe1 {[%clk 0:03:01.3]} 7... d4 {[%clk 0:02:51.6]} 8. Na3 {[%clk 0:03:01.1]}
8... Nc6 {[%clk 0:02:51.3]} 9. Bd2 {[%clk 0:03:00.1]} 9... Nd5 {[%clk 0:02:51]}
10. c4 {[%clk 0:02:58.4]} 10... Nf6 {[%clk 0:02:50.8]} 11. Nc2 {[%clk
0:02:57.8]} 11... Qc7 {[%clk 0:02:50.6]} 12. a3 {[%clk 0:02:56.4]} 12... b6
{[%clk 0:02:50.6]} 13. b4 {[%clk 0:02:55.7]} 13... Bb7 {[%clk 0:02:51.1]} 14. b5
{[%clk 0:02:52.9]} 14... Nb8 {[%clk 0:02:49.2]} 15. a4 {[%clk 0:02:52.5]} 15...
a5 {[%clk 0:02:48.3]} 16. bxa6 {[%clk 0:02:49]} 16... Nxa6 {[%clk 0:02:46.2]}
17. Na3 {[%clk 0:02:37.6]} 17... Ng4 {[%clk 0:02:32.7]} 18. Nb5 {[%clk
0:02:36.5]} 18... Qd7 {[%clk 0:02:27.6]} 19. Rb1 {[%clk 0:01:55.8]} 19... Ne3
{[%clk 0:02:18.1]} 20. Bxe3 {[%clk 0:01:55]} 20... dxe3 {[%clk 0:02:19]} 21. Qc1
{[%clk 0:01:48.1]} 21... Nb4 {[%clk 0:01:52]} 22. Ne5 {[%clk 0:00:51.5]} 22...
Bxe5 {[%clk 0:01:40.1]} 23. fxe5 {[%clk 0:00:51.1]} 23... Bxg2 {[%clk
0:01:37.8]} 24. Kxg2 {[%clk 0:00:52]} 24... Rxa4 {[%clk 0:01:30.7]} 25. Qxe3
{[%clk 0:00:51.3]} 25... Ra2 {[%clk 0:01:28.2]} 26. Rf2 {[%clk 0:00:42.6]} 26...
Qe6 {[%clk 0:01:16.9]} 27. Rbf1 {[%clk 0:00:37.5]} 27... Nc6 {[%clk 0:01:16.6]}
28. Nc7 {[%clk 0:00:31.9]} 28... Qxe5 {[%clk 0:01:13.4]} 29. Qxe5 {[%clk
0:00:29.3]} 29... Nxe5 {[%clk 0:01:14.3]} 30. Nd5 {[%clk 0:00:28.7]} 30... Kg7
{[%clk 0:01:02.5]} 31. h3 {[%clk 0:00:08.9]} 31... e6 {[%clk 0:01:02.6]} 32. Nf6
{[%clk 0:00:03.9]} 32... h5 {[%clk 0:00:59.4]} 33. Ne4 {[%clk 0:00:03.8]} 33...
Rd8 {[%clk 0:00:52.3]} 34. Ng5 {[%clk 0:00:02.2]} 34... Rd7 {[%clk 0:00:52.8]}
35. Nf3 {[%clk 0:00:02.1]} 35... Nxf3 {[%clk 0:00:52.4]} 36. Kxf3 {[%clk
0:00:03]} 36... Rb2 {[%clk 0:00:52.1]} 37. Ke3 {[%clk 0:00:03.2]} 37... b5
{[%clk 0:00:46]} 38. cxb5 {[%clk 0:00:04.1]} 38... Rxb5 {[%clk 0:00:46.7]} 39.
g4 {[%clk 0:00:04.6]} 39... h4 {[%clk 0:00:41.5]} 40. g5 {[%clk 0:00:04.5]}
40... c4 {[%clk 0:00:41.4]} 41. dxc4 {[%clk 0:00:04.5]} 41... Rxg5 {[%clk
0:00:41]} 42. Rf4 {[%clk 0:00:04.9]} 42... Rg3+ {[%clk 0:00:37.2]} 43. R1f3
{[%clk 0:00:04.6]} 43... Rxf3+ {[%clk 0:00:37.5]} 44. exf3 {[%clk 0:00:05.1]}
44... g5 {[%clk 0:00:37.8]} 45. Rg4 {[%clk 0:00:04.4]} 45... Kf6 {[%clk
0:00:34.6]} 46. c5 {[%clk 0:00:04.7]} 46... Rc7 {[%clk 0:00:33.7]} 47. Rc4
{[%clk 0:00:04.8]} 47... Ke5 {[%clk 0:00:34.2]} 48. c6 {[%clk 0:00:03.3]} 48...
Kd6 {[%clk 0:00:33.9]} 49. Ke4 {[%clk 0:00:03.5]} 49... Rxc6 {[%clk 0:00:30.1]}
50. Rxc6+ {[%clk 0:00:03.4]} 50... Kxc6 {[%clk 0:00:31]} 51. Ke5 {[%clk
0:00:04.3]} 51... f5 {[%clk 0:00:20.6]} 52. Kxe6 {[%clk 0:00:02.5]} 52... g4
{[%clk 0:00:21.2]} 53. hxg4 {[%clk 0:00:01.2]} 53... fxg4 {[%clk 0:00:20.8]} 54.
fxg4 {[%clk 0:00:02.1]} 54... h3 {[%clk 0:00:21.1]} 55. g5 {[%clk 0:00:03]}
55... h2 {[%clk 0:00:21.7]} 56. g6 {[%clk 0:00:03.9]} 56... h1=Q {[%clk
0:00:21.8]} 57. g7 {[%clk 0:00:04.8]} 57... Qd5+ {[%clk 0:00:22.3]} 58. Ke7
{[%clk 0:00:04.6]} 58... Qg8 {[%clk 0:00:23.2]} 0-1

[Event "*** Titled Tuesday Blitz"]
[Site "Chess.com"]
[Date "2020.11.24"]
[Round "1"]
[White "Sebastian"]
[Black "Rital44"]
[Result "1-0"]
[WhiteElo "2906"]
[BlackElo "2445"]
[TimeControl "180+1"]
[EndTime "10:23:02 PST"]
[Termination "Sebastian won on time"]

1. e4 {[%clk 0:03:00.1]} 1... e5 {[%clk 0:02:59.1]} 2. Nf3 {[%clk 0:03:00.2]}
2... Nc6 {[%clk 0:02:59.4]} 3. Bb5 {[%clk 0:03:00.8]} 3... a6 {[%clk 0:02:58.8]}
4. Ba4 {[%clk 0:03:00.7]} 4... d6 {[%clk 0:02:59.2]} 5. O-O {[%clk 0:02:58.1]}
5... Bg4 {[%clk 0:02:58.2]} 6. h3 {[%clk 0:02:43.5]} 6... h5 {[%clk 0:02:58.3]}
7. d4 {[%clk 0:02:38.8]} 7... b5 {[%clk 0:02:47]} 8. Bb3 {[%clk 0:02:37.8]} 8...
Nxd4 {[%clk 0:02:44.5]} 9. hxg4 {[%clk 0:02:37.2]} 9... hxg4 {[%clk 0:02:41.9]}
10. Ng5 {[%clk 0:02:37.2]} 10... Nxb3 {[%clk 0:02:14.9]} 11. axb3 {[%clk
0:02:34.7]} 11... Qd7 {[%clk 0:02:15.1]} 12. f4 {[%clk 0:01:39.8]} 12... c6
{[%clk 0:01:57]} 13. Be3 {[%clk 0:01:23.5]} 13... f6 {[%clk 0:01:50.2]} 14. fxe5
{[%clk 0:00:54.3]} 14... fxg5 {[%clk 0:01:48.8]} 15. Nc3 {[%clk 0:00:54.4]}
15... Nh6 {[%clk 0:01:36.4]} 16. Ne2 {[%clk 0:00:46.8]} 16... dxe5 {[%clk
0:01:31.9]} 17. Ng3 {[%clk 0:00:38.1]} 17... Be7 {[%clk 0:01:21.2]} 18. Nf5
{[%clk 0:00:24.4]} 18... Nxf5 {[%clk 0:01:19.9]} 19. Rxf5 {[%clk 0:00:23.4]}
19... Qxd1+ {[%clk 0:01:08.9]} 20. Rxd1 {[%clk 0:00:24.3]} 20... Bf6 {[%clk
0:01:06]} 21. Bxg5 {[%clk 0:00:20.4]} 21... O-O {[%clk 0:00:48.8]} 22. Bxf6
{[%clk 0:00:17.6]} 22... gxf6 {[%clk 0:00:49.7]} 23. Rd6 {[%clk 0:00:15.9]}
23... Rad8 {[%clk 0:00:43.7]} 24. Rxc6 {[%clk 0:00:15.6]} 24... g3 {[%clk
0:00:41.5]} 25. Rc3 {[%clk 0:00:15.4]} 25... Rd4 {[%clk 0:00:36.8]} 26. Rxg3+
{[%clk 0:00:14.7]} 26... Kf7 {[%clk 0:00:37.4]} 27. Re3 {[%clk 0:00:13.8]} 27...
Ke6 {[%clk 0:00:36.5]} 28. Rf2 {[%clk 0:00:11.1]} 28... Rd1+ {[%clk 0:00:27.4]}
29. Kh2 {[%clk 0:00:11.2]} 29... Rh8+ {[%clk 0:00:26.6]} 30. Kg3 {[%clk
0:00:11]} 30... Rg8+ {[%clk 0:00:24.6]} 31. Kf3 {[%clk 0:00:11.3]} 31... Rb1
{[%clk 0:00:22.3]} 32. Rc3 {[%clk 0:00:09.1]} 32... Rxb2 {[%clk 0:00:15.5]} 33.
Rc6+ {[%clk 0:00:08.8]} 33... Kf7 {[%clk 0:00:15.5]} 34. Rxa6 {[%clk 0:00:07.4]}
34... Rh8 {[%clk 0:00:15.6]} 35. Ke3 {[%clk 0:00:06.5]} 35... Rh6 {[%clk
0:00:13.9]} 36. Rb6 {[%clk 0:00:05.6]} 36... Rb1 {[%clk 0:00:14]} 37. Rxb5
{[%clk 0:00:05.2]} 37... Re1+ {[%clk 0:00:14.6]} 38. Re2 {[%clk 0:00:04.9]}
38... Rf1 {[%clk 0:00:14]} 39. Rb6 {[%clk 0:00:04.9]} 39... Rh4 {[%clk
0:00:13.5]} 40. Rc6 {[%clk 0:00:04.9]} 40... Rg4 {[%clk 0:00:09.9]} 41. b4
{[%clk 0:00:04.7]} 41... Rg3+ {[%clk 0:00:09.8]} 42. Kd2 {[%clk 0:00:05.1]}
42... Rb1 {[%clk 0:00:08.9]} 43. Rb6 {[%clk 0:00:04]} 43... Kg6 {[%clk
0:00:07.6]} 44. Rf2 {[%clk 0:00:04.2]} 44... Kg5 {[%clk 0:00:07.3]} 45. Rbxf6
{[%clk 0:00:03.7]} 45... Rxb4 {[%clk 0:00:04.5]} 46. R2f5+ {[%clk 0:00:03.9]}
46... Kh4 {[%clk 0:00:04.2]} 47. Rh6+ {[%clk 0:00:03.4]} 47... Kg4 {[%clk
0:00:04.6]} 48. Rg6+ {[%clk 0:00:04]} 48... Kh4 {[%clk 0:00:04.9]} 49. Rxg3
{[%clk 0:00:04.5]} 49... Kxg3 {[%clk 0:00:04]} 50. Rxe5 {[%clk 0:00:05.2]} 50...
Kxg2 {[%clk 0:00:03.2]} 51. Kc3 {[%clk 0:00:04.9]} 51... Kf3 {[%clk 0:00:04.1]}
52. Kxb4 {[%clk 0:00:04.7]} 1-0

[Event "*** Titled Tuesday Blitz"]
[Site "Chess.com"]
[Date "2020.11.24"]
[Round "1"]
[White "MarkoPe"]
[Black "Chess_Boxer123"]
[Result "0-1"]
[WhiteElo "2194"]
[BlackElo "2527"]
[TimeControl "180+1"]
[EndTime "10:23:04 PST"]
[Termination "Chess_Boxer123 won by resignation"]

1. e4 {[%clk 0:02:59.9]} 1... c6 {[%clk 0:02:47.5]} 2. d4 {[%clk 0:02:59.5]}
2... d5 {[%clk 0:02:47.6]} 3. exd5 {[%clk 0:03:00.4]} 3... cxd5 {[%clk
0:02:43.4]} 4. Bd3 {[%clk 0:03:01]} 4... Nc6 {[%clk 0:02:42.7]} 5. c3 {[%clk
0:03:01.6]} 5... Nf6 {[%clk 0:02:42.9]} 6. Bf4 {[%clk 0:03:00.8]} 6... e6 {[%clk
0:02:38]} 7. Nf3 {[%clk 0:02:53.8]} 7... Bd6 {[%clk 0:02:37.7]} 8. Bg5 {[%clk
0:02:39.9]} 8... h6 {[%clk 0:02:34.7]} 9. Be3 {[%clk 0:02:39.8]} 9... O-O {[%clk
0:02:27.2]} 10. O-O {[%clk 0:02:38.9]} 10... e5 {[%clk 0:02:23.9]} 11. dxe5
{[%clk 0:02:38.2]} 11... Nxe5 {[%clk 0:02:24.4]} 12. Nxe5 {[%clk 0:02:38.8]}
12... Bxe5 {[%clk 0:02:25.1]} 13. h3 {[%clk 0:02:26.7]} 13... Kh8 {[%clk
0:02:08.8]} 14. Bc2 {[%clk 0:02:07.5]} 14... b6 {[%clk 0:02:03.7]} 15. Nd2
{[%clk 0:01:38.1]} 15... Ba6 {[%clk 0:02:02.5]} 16. Re1 {[%clk 0:01:32.6]} 16...
d4 {[%clk 0:01:30.5]} 17. Bxh6 {[%clk 0:00:48]} 17... dxc3 {[%clk 0:01:30.1]}
18. Rxe5 {[%clk 0:00:47.4]} 18... cxb2 {[%clk 0:01:14.1]} 19. Bxg7+ {[%clk
0:00:29.5]} 19... Kxg7 {[%clk 0:01:14.1]} 20. Rb1 {[%clk 0:00:27.6]} 20... Qd4
{[%clk 0:01:05.3]} 21. Rg5+ {[%clk 0:00:24.8]} 21... Kh6 {[%clk 0:01:05.5]} 22.
Rg3 {[%clk 0:00:14.5]} 22... Rg8 {[%clk 0:00:53.6]} 23. Rf3 {[%clk 0:00:06.5]}
23... Rad8 {[%clk 0:00:51.3]} 24. Qe1 {[%clk 0:00:03.2]} 24... Bb7 {[%clk
0:00:35.6]} 25. Qe3+ {[%clk 0:00:01.6]} 25... Qxe3 {[%clk 0:00:35.4]} 26. fxe3
{[%clk 0:00:01.7]} 26... Bxf3 {[%clk 0:00:33.6]} 27. Nxf3 {[%clk 0:00:02.6]}
27... Nd5 {[%clk 0:00:30.9]} 28. Rxb2 {[%clk 0:00:03]} 28... Nxe3 {[%clk
0:00:31.3]} 29. Bb3 {[%clk 0:00:03.7]} 29... Rd3 {[%clk 0:00:23.7]} 30. Ne5
{[%clk 0:00:03.5]} 30... Rc3 {[%clk 0:00:20.3]} 31. Nxf7+ {[%clk 0:00:03.7]}
31... Kg7 {[%clk 0:00:19.2]} 32. Ne5 {[%clk 0:00:03.5]} 32... Re8 {[%clk
0:00:19.6]} 33. Nf3 {[%clk 0:00:03.2]} 33... Nc4 {[%clk 0:00:19.9]} 34. Bxc4
{[%clk 0:00:03.1]} 34... Rxc4 {[%clk 0:00:20.8]} 35. Kh2 {[%clk 0:00:02.7]}
35... Ra4 {[%clk 0:00:21]} 36. Kg3 {[%clk 0:00:02.7]} 36... Re3 {[%clk
0:00:21.4]} 37. h4 {[%clk 0:00:02.6]} 37... Rea3 {[%clk 0:00:21.9]} 38. Re2
{[%clk 0:00:02.7]} 38... Rxa2 {[%clk 0:00:21.6]} 39. Re7+ {[%clk 0:00:02.9]}
39... Kf6 {[%clk 0:00:21.8]} 40. Rb7 {[%clk 0:00:03.1]} 40... Rb2 {[%clk
0:00:19.2]} 41. h5 {[%clk 0:00:02.6]} 41... Raa2 {[%clk 0:00:19.8]} 42. Nh4
{[%clk 0:00:03]} 42... Kg5 {[%clk 0:00:17.9]} 43. Nf3+ {[%clk 0:00:02.7]} 43...
Kxh5 {[%clk 0:00:18.3]} 44. Rh7+ {[%clk 0:00:02.4]} 44... Kg6 {[%clk 0:00:18.7]}
45. Rb7 {[%clk 0:00:02.1]} 45... Rxg2+ {[%clk 0:00:19]} 46. Kf4 {[%clk 0:00:03]}
46... Rgb2 {[%clk 0:00:19.4]} 47. Nh4+ {[%clk 0:00:02.8]} 47... Kf6 {[%clk
0:00:19.8]} 48. Nf3 {[%clk 0:00:03.2]} 48... Rb4+ {[%clk 0:00:20]} 49. Kg3
{[%clk 0:00:03.6]} 49... Ra3 {[%clk 0:00:19.8]} 50. Kf2 {[%clk 0:00:03.5]} 50...
Rb2+ {[%clk 0:00:20.3]} 51. Kg3 {[%clk 0:00:03.8]} 51... Rbb3 {[%clk 0:00:20.6]}
52. Kg4 {[%clk 0:00:04.2]} 52... Rxf3 {[%clk 0:00:20.7]} 0-1